[Event "Titled Tuesday Blitz July 13 2021"]
[White "Horak, Martin"]
[Black "Belyakov, Bogdan"]
[WhiteFideId "367095"]
[BlackFideId "24104795"]
[WhiteElo "1997"]
[BlackElo "2407"]
[Result "1-0"]
[Round "01"]
[TimeControl "180+1"]
[Date "2021.07.13"]
[WhiteClock "0:00:11"]
[BlackClock "0:01:03"]

1. e4 {[%clk 0:02:57]}  e5 {[%clk 0:02:59]} 2. Nf3 {[%clk 0:02:55]}  Nc6 {[%clk 0:02:58]} 3. Bb5 {[%clk 0:02:56]}  Nf6 {[%clk 0:02:58]} 4. O-O {[%clk 0:02:56]}  Nxe4 {[%clk 0:02:58]} 5. Re1 {[%clk 0:02:55]}  Nd6 {[%clk 0:02:59]} 6. Nxe5 {[%clk 0:02:55]}  Be7 {[%clk 0:02:59]} 7. Bf1 {[%clk 0:02:52]}  Nxe5 {[%clk 0:02:59]} 8. Rxe5 {[%clk 0:02:52]}  O-O {[%clk 0:02:59]} 9. d4 {[%clk 0:02:52]}  Bf6 {[%clk 0:02:59]} 10. Re1 {[%clk 0:02:52]}  Re8 {[%clk 0:03:00]} 11. c3 {[%clk 0:02:51]}  Rxe1 {[%clk 0:02:58]} 12. Qxe1 {[%clk 0:02:52]}  Qe8 {[%clk 0:02:58]} 13. Qxe8+ {[%clk 0:02:52]}  Nxe8 {[%clk 0:02:59]} 14. Bf4 {[%clk 0:02:52]}  d5 {[%clk 0:02:59]} 15. Bd3 {[%clk 0:02:46]}  Be7 {[%clk 0:02:59]} 16. Nd2 {[%clk 0:02:33]}  Bd6 {[%clk 0:02:59]} 17. Re1 {[%clk 0:02:31]}  Be6 {[%clk 0:02:58]} 18. Bxd6 {[%clk 0:02:11]}  Nxd6 {[%clk 0:02:58]} 19. Nf3 {[%clk 0:02:06]}  h6 {[%clk 0:02:57]} 20. Ne5 {[%clk 0:02:00]}  Re8 {[%clk 0:02:55]} 21. f3 {[%clk 0:01:48]}  Bf5 {[%clk 0:02:54]} 22. Bxf5 {[%clk 0:01:46]}  Nxf5 {[%clk 0:02:54]} 23. Kf2 {[%clk 0:01:47]}  f6 {[%clk 0:02:50]} 24. Nd3 {[%clk 0:01:46]}  Rxe1 {[%clk 0:02:51]} 25. Nxe1 {[%clk 0:01:47]}  Kf7 {[%clk 0:02:51]} 26. g4 {[%clk 0:01:45]}  Nd6 {[%clk 0:02:50]} 27. b3 {[%clk 0:01:45]}  Nb5 {[%clk 0:02:49]} 28. c4 {[%clk 0:01:35]}  dxc4 {[%clk 0:02:49]} 29. bxc4 {[%clk 0:01:36]}  Nxd4 {[%clk 0:02:49]} 30. Nd3 {[%clk 0:01:34]}  b6 {[%clk 0:02:45]} 31. Ke3 {[%clk 0:01:21]}  c5 {[%clk 0:02:45]} 32. Ke4 {[%clk 0:01:22]}  g5 {[%clk 0:02:32]} 33. f4 {[%clk 0:01:13]}  Ke6 {[%clk 0:02:32]} 34. h3 {[%clk 0:00:54]}  Kd6 {[%clk 0:02:27]} 35. Ne1 {[%clk 0:00:43]}  a6 {[%clk 0:02:26]} 36. Ng2 {[%clk 0:00:38]}  b5 {[%clk 0:02:19]} 37. Kd3 {[%clk 0:00:38]}  Ne6 {[%clk 0:02:16]} 38. f5 {[%clk 0:00:34]}  Nd8 {[%clk 0:01:28]} 39. Ke4 {[%clk 0:00:24]}  Nc6 {[%clk 0:01:26]} 40. Ne3 {[%clk 0:00:22]}  Ne5 {[%clk 0:01:19]} 41. cxb5 {[%clk 0:00:21]}  axb5 {[%clk 0:01:19]} 42. Nd5 {[%clk 0:00:22]}  Nd7 {[%clk 0:01:19]} 43. a3 {[%clk 0:00:19]}  Kc6 {[%clk 0:01:14]} 44. Ne7+ {[%clk 0:00:18]}  Kb6 {[%clk 0:01:14]} 45. Ng8 {[%clk 0:00:18]}  b4 {[%clk 0:01:14]} 46. axb4 {[%clk 0:00:18]}  cxb4 {[%clk 0:01:14]} 47. Kd3 {[%clk 0:00:18]}  Kc5 {[%clk 0:01:13]} 48. Nxh6 {[%clk 0:00:18]}  Kd5 {[%clk 0:01:10]} 49. Nf7 {[%clk 0:00:16]}  b3 {[%clk 0:01:09]} 50. Kc3 {[%clk 0:00:16]}  Ke4 {[%clk 0:01:10]} 51. Kxb3 {[%clk 0:00:16]}  Kf3 {[%clk 0:01:10]} 52. Kc4 {[%clk 0:00:16]}  Kg3 {[%clk 0:01:10]} 53. Kd5 {[%clk 0:00:17]}  Kxh3 {[%clk 0:01:11]} 54. Nh6 {[%clk 0:00:18]}  Ne5 {[%clk 0:01:04]} 55. Ke6 {[%clk 0:00:17]}  Nxg4 {[%clk 0:01:05]} 56. Nxg4 {[%clk 0:00:16]}  Kxg4 {[%clk 0:01:06]} 57. Kxf6 {[%clk 0:00:17]}  Kh4 {[%clk 0:01:00]} 58. Ke6 {[%clk 0:00:17]}  g4 {[%clk 0:01:01]} 59. f6 {[%clk 0:00:18]}  g3 {[%clk 0:00:59]} 60. f7 {[%clk 0:00:19]}  g2 {[%clk 0:00:59]} 61. f8=Q {[%clk 0:00:19]}  Kg3 {[%clk 0:01:00]} 62. Qg7+ {[%clk 0:00:18]}  Kf2 {[%clk 0:01:00]} 63. Qf6+ {[%clk 0:00:17]}  Ke2 {[%clk 0:01:01]} 64. Qe5+ {[%clk 0:00:17]}  Kf2 {[%clk 0:01:01]} 65. Qf4+ {[%clk 0:00:17]}  Ke2 {[%clk 0:01:02]} 66. Qg3 {[%clk 0:00:14]}  Kf1 {[%clk 0:01:02]} 67. Qf3+ {[%clk 0:00:15]}  Kg1 {[%clk 0:01:03]} 68. Kf5 {[%clk 0:00:15]}  Kh2 {[%clk 0:01:04]} 69. Qf4+ {[%clk 0:00:14]}  Kh1 {[%clk 0:01:03]} 70. Qh4+ {[%clk 0:00:14]}  Kg1 {[%clk 0:01:04]} 71. Ke4 {[%clk 0:00:11]}  Kf1 {[%clk 0:01:05]} 72. Qf4+ {[%clk 0:00:11]}  Ke2 {[%clk 0:01:04]} 73. Qf3+ {[%clk 0:00:11]}  Ke1 {[%clk 0:01:03]} 74. Qxg2 {[%clk 0:00:11]} 1-0


[Site "https://www.chess.com"]

[Event "Titled Tuesday Blitz July 13 2021"]
[White "Howell, David W L"]
[Black "Shahinyan, David"]
[WhiteFideId "410608"]
[BlackFideId "13304380"]
[WhiteElo "2643"]
[BlackElo "2372"]
[Result "1-0"]
[Round "01"]
[TimeControl "180+1"]
[Date "2021.07.13"]
[WhiteClock "0:00:10"]
[BlackClock "0:00:07"]

1. d4 {[%clk 0:02:56]}  Nf6 {[%clk 0:02:59]} 2. c4 {[%clk 0:02:56]}  c5 {[%clk 0:02:58]} 3. d5 {[%clk 0:02:54]}  b5 {[%clk 0:02:54]} 4. cxb5 {[%clk 0:02:48]}  a6 {[%clk 0:02:54]} 5. bxa6 {[%clk 0:02:48]}  Bxa6 {[%clk 0:02:55]} 6. Nc3 {[%clk 0:02:47]}  d6 {[%clk 0:02:55]} 7. Nf3 {[%clk 0:02:46]}  g6 {[%clk 0:02:54]} 8. e4 {[%clk 0:02:46]}  Bxf1 {[%clk 0:02:53]} 9. Kxf1 {[%clk 0:02:47]}  Bg7 {[%clk 0:02:54]} 10. g3 {[%clk 0:02:48]}  O-O {[%clk 0:02:53]} 11. Kg2 {[%clk 0:02:49]}  Qb6 {[%clk 0:02:52]} 12. Qe2 {[%clk 0:02:40]}  Na6 {[%clk 0:02:51]} 13. Rd1 {[%clk 0:02:32]}  Nd7 {[%clk 0:02:49]} 14. Bg5 {[%clk 0:02:26]}  h6 {[%clk 0:02:34]} 15. Be3 {[%clk 0:02:24]}  Nc7 {[%clk 0:02:31]} 16. Rdb1 {[%clk 0:02:16]}  Qa6 {[%clk 0:02:29]} 17. Kf1 {[%clk 0:02:12]}  Rfb8 {[%clk 0:02:27]} 18. Nd1 {[%clk 0:01:49]}  f5 {[%clk 0:02:12]} 19. exf5 {[%clk 0:01:41]}  Qxe2+ {[%clk 0:02:10]} 20. Kxe2 {[%clk 0:01:41]}  gxf5 {[%clk 0:02:11]} 21. Nh4 {[%clk 0:01:40]}  Nxd5 {[%clk 0:01:59]} 22. Nxf5 {[%clk 0:01:39]}  Nxe3 {[%clk 0:01:54]} 23. fxe3 {[%clk 0:01:29]}  Kf7 {[%clk 0:01:51]} 24. Nxg7 {[%clk 0:01:25]}  Kxg7 {[%clk 0:01:52]} 25. Nc3 {[%clk 0:01:26]}  Ne5 {[%clk 0:01:51]} 26. b3 {[%clk 0:01:26]}  Ra3 {[%clk 0:01:46]} 27. Kd2 {[%clk 0:01:23]}  c4 {[%clk 0:01:42]} 28. Kc2 {[%clk 0:01:20]}  cxb3+ {[%clk 0:01:37]} 29. axb3 {[%clk 0:01:20]}  Rbxb3 {[%clk 0:01:37]} 30. Rxa3 {[%clk 0:01:12]}  Rxa3 {[%clk 0:01:35]} 31. Rb7 {[%clk 0:01:13]}  Kf7 {[%clk 0:01:28]} 32. Nd5 {[%clk 0:00:56]}  Ke6 {[%clk 0:01:23]} 33. e4 {[%clk 0:00:50]}  Nc6 {[%clk 0:01:02]} 34. Rc7 {[%clk 0:00:46]}  Ra6 {[%clk 0:00:56]} 35. Kd2 {[%clk 0:00:39]}  Kf7 {[%clk 0:00:53]} 36. Ke3 {[%clk 0:00:38]}  Ne5 {[%clk 0:00:35]} 37. Rxe7+ {[%clk 0:00:36]}  Kg6 {[%clk 0:00:35]} 38. Nf4+ {[%clk 0:00:27]}  Kf6 {[%clk 0:00:32]} 39. Nd5+ {[%clk 0:00:25]}  Kg6 {[%clk 0:00:30]} 40. Kf4 {[%clk 0:00:16]}  Ra3 {[%clk 0:00:29]} 41. Re6+ {[%clk 0:00:14]}  Kf7 {[%clk 0:00:27]} 42. Rxd6 {[%clk 0:00:15]}  Ng6+ {[%clk 0:00:22]} 43. Kg4 {[%clk 0:00:12]}  Ra2 {[%clk 0:00:19]} 44. h4 {[%clk 0:00:11]}  Ra3 {[%clk 0:00:16]} 45. Rf6+ {[%clk 0:00:07]}  Kg7 {[%clk 0:00:15]} 46. Rf5 {[%clk 0:00:08]}  Ra4 {[%clk 0:00:10]} 47. Kf3 {[%clk 0:00:06]}  Ra3+ {[%clk 0:00:11]} 48. Kg4 {[%clk 0:00:07]}  Ne7 {[%clk 0:00:11]} 49. Nxe7 {[%clk 0:00:07]}  Ra4 {[%clk 0:00:09]} 50. Rf4 {[%clk 0:00:07]}  Ra7 {[%clk 0:00:10]} 51. Nf5+ {[%clk 0:00:08]}  Kg6 {[%clk 0:00:10]} 52. h5+ {[%clk 0:00:09]}  Kh7 {[%clk 0:00:10]} 53. Nh4 {[%clk 0:00:09]}  Rg7+ {[%clk 0:00:09]} 54. Kf3 {[%clk 0:00:09]}  Ra7 {[%clk 0:00:08]} 55. Rf5 {[%clk 0:00:09]}  Kg7 {[%clk 0:00:08]} 56. Kf4 {[%clk 0:00:10]}  Rc7 {[%clk 0:00:07]} 57. Ng6 {[%clk 0:00:10]}  Rb7 {[%clk 0:00:07]} 58. Re5 {[%clk 0:00:11]}  Rf7+ {[%clk 0:00:06]} 59. Ke3 {[%clk 0:00:11]}  Ra7 {[%clk 0:00:07]} 60. Re7+ {[%clk 0:00:11]}  Kf6 {[%clk 0:00:07]} 61. Rxa7 {[%clk 0:00:11]}  Kg5 {[%clk 0:00:07]} 62. e5 {[%clk 0:00:10]}  Kxh5 {[%clk 0:00:07]} 63. e6 {[%clk 0:00:11]}  Kxg6 {[%clk 0:00:08]} 64. Rf7 {[%clk 0:00:10]}  Kg5 {[%clk 0:00:09]} 65. e7 {[%clk 0:00:10]}  Kg4 {[%clk 0:00:09]} 66. e8=Q {[%clk 0:00:11]}  Kh3 {[%clk 0:00:09]} 67. Rf4 {[%clk 0:00:10]}  Kg2 {[%clk 0:00:08]} 68. Qh5 {[%clk 0:00:10]}  Kg1 {[%clk 0:00:08]} 69. Kf3 {[%clk 0:00:09]}  Kf1 {[%clk 0:00:07]} 70. Qh1# {[%clk 0:00:10]} 1-0


[Site "https://www.chess.com"]

[Event "Titled Tuesday Blitz July 13 2021"]
[White "Ibrahimli, Murad"]
[Black "Salik, Serkan"]
[WhiteFideId "13410229"]
[BlackFideId "30952492"]
[WhiteElo "2109"]
[BlackElo "2422"]
[Result "0-1"]
[Round "01"]
[TimeControl "180+1"]
[Date "2021.07.13"]
[WhiteClock "0:00:22"]
[BlackClock "0:00:12"]

1. e4 {[%clk 0:03:00]}  e5 {[%clk 0:02:50]} 2. Nf3 {[%clk 0:02:57]}  Nc6 {[%clk 0:02:50]} 3. Bb5 {[%clk 0:02:57]}  a6 {[%clk 0:02:50]} 4. Ba4 {[%clk 0:02:58]}  d6 {[%clk 0:02:50]} 5. O-O {[%clk 0:02:57]}  Bd7 {[%clk 0:02:51]} 6. c3 {[%clk 0:02:56]}  g6 {[%clk 0:02:51]} 7. d4 {[%clk 0:02:57]}  Bg7 {[%clk 0:02:51]} 8. Be3 {[%clk 0:02:56]}  Nf6 {[%clk 0:02:51]} 9. dxe5 {[%clk 0:02:56]}  dxe5 {[%clk 0:02:42]} 10. Nbd2 {[%clk 0:02:55]}  O-O {[%clk 0:02:40]} 11. b4 {[%clk 0:02:55]}  Re8 {[%clk 0:02:14]} 12. Bb3 {[%clk 0:02:49]}  Ng4 {[%clk 0:02:02]} 13. Bg5 {[%clk 0:02:47]}  Bf6 {[%clk 0:02:02]} 14. Bxf6 {[%clk 0:02:45]}  Nxf6 {[%clk 0:02:03]} 15. a4 {[%clk 0:02:40]}  Bg4 {[%clk 0:01:57]} 16. h3 {[%clk 0:02:22]}  Be6 {[%clk 0:01:31]} 17. Qc2 {[%clk 0:02:14]}  Nh5 {[%clk 0:01:28]} 18. Bxe6 {[%clk 0:02:06]}  Rxe6 {[%clk 0:01:29]} 19. g3 {[%clk 0:02:01]}  Qd7 {[%clk 0:01:17]} 20. Kg2 {[%clk 0:01:59]}  Rd8 {[%clk 0:00:56]} 21. Nc4 {[%clk 0:01:49]}  Qd3 {[%clk 0:00:56]} 22. Qxd3 {[%clk 0:01:36]}  Rxd3 {[%clk 0:00:57]} 23. Rac1 {[%clk 0:01:36]}  Nf6 {[%clk 0:00:46]} 24. b5 {[%clk 0:01:34]}  axb5 {[%clk 0:00:42]} 25. axb5 {[%clk 0:01:35]}  Na7 {[%clk 0:00:40]} 26. Nfxe5 {[%clk 0:01:34]}  Rd8 {[%clk 0:00:38]} 27. Rfd1 {[%clk 0:01:24]}  Rxd1 {[%clk 0:00:34]} 28. Rxd1 {[%clk 0:01:24]}  Nxb5 {[%clk 0:00:33]} 29. f3 {[%clk 0:01:00]}  Nxc3 {[%clk 0:00:25]} 30. Rd3 {[%clk 0:00:54]}  Nb5 {[%clk 0:00:21]} 31. Rb3 {[%clk 0:00:52]}  c6 {[%clk 0:00:20]} 32. Nd3 {[%clk 0:00:52]}  Nd7 {[%clk 0:00:18]} 33. Rb2 {[%clk 0:00:47]}  Re8 {[%clk 0:00:18]} 34. Ra2 {[%clk 0:00:46]}  Rd8 {[%clk 0:00:17]} 35. Kf2 {[%clk 0:00:40]}  Nb6 {[%clk 0:00:11]} 36. Nce5 {[%clk 0:00:39]}  f6 {[%clk 0:00:10]} 37. Ng4 {[%clk 0:00:30]}  Rxd3 {[%clk 0:00:10]} 38. Nxf6+ {[%clk 0:00:31]}  Kf7 {[%clk 0:00:10]} 39. Ng4 {[%clk 0:00:32]}  Nc4 {[%clk 0:00:08]} 40. Ra8 {[%clk 0:00:25]}  Nd4 {[%clk 0:00:07]} 41. f4 {[%clk 0:00:26]}  Rf3+ {[%clk 0:00:06]} 42. Kg2 {[%clk 0:00:25]}  Ne3+ {[%clk 0:00:07]} 43. Nxe3 {[%clk 0:00:25]}  Rxe3 {[%clk 0:00:08]} 44. e5 {[%clk 0:00:26]}  Re2+ {[%clk 0:00:08]} 45. Kf1 {[%clk 0:00:26]}  b5 {[%clk 0:00:08]} 46. Rh8 {[%clk 0:00:26]}  b4 {[%clk 0:00:08]} 47. Rxh7+ {[%clk 0:00:26]}  Ke6 {[%clk 0:00:09]} 48. Rg7 {[%clk 0:00:23]}  b3 {[%clk 0:00:08]} 49. Rxg6+ {[%clk 0:00:24]}  Kf5 {[%clk 0:00:08]} 50. Rg7 {[%clk 0:00:20]}  b2 {[%clk 0:00:07]} 51. Rb7 {[%clk 0:00:21]}  Rc2 {[%clk 0:00:08]} 52. Rb4 {[%clk 0:00:20]}  Rc1+ {[%clk 0:00:08]} 53. Kf2 {[%clk 0:00:20]}  b1=Q {[%clk 0:00:09]} 54. Rxb1 {[%clk 0:00:21]}  Rxb1 {[%clk 0:00:10]} 55. g4+ {[%clk 0:00:21]}  Kxf4 {[%clk 0:00:10]} 56. e6 {[%clk 0:00:22]}  Rb2+ {[%clk 0:00:11]} 57. Ke1 {[%clk 0:00:22]}  Ke3 {[%clk 0:00:11]} 58. Kd1 {[%clk 0:00:22]}  Rb1# {[%clk 0:00:12]} 0-1


[Site "https://www.chess.com"]

[Event "Titled Tuesday Blitz July 13 2021"]
[White "Isajevsky, Anton"]
[Black "Terry, Renato"]
[WhiteFideId "4142500"]
[BlackFideId "3803457"]
[WhiteElo "2510"]
[BlackElo "2581"]
[Result "0-1"]
[Round "01"]
[TimeControl "180+1"]
[Date "2021.07.13"]
[WhiteClock "0:00:02"]
[BlackClock "0:00:05"]

1. c4 {[%clk 0:02:56]}  b6 {[%clk 0:02:58]} 2. Nc3 {[%clk 0:02:55]}  Bb7 {[%clk 0:02:58]} 3. Nf3 {[%clk 0:02:55]}  Nf6 {[%clk 0:02:58]} 4. d4 {[%clk 0:02:55]}  e6 {[%clk 0:02:57]} 5. a3 {[%clk 0:02:54]}  g6 {[%clk 0:02:55]} 6. Bg5 {[%clk 0:02:45]}  h6 {[%clk 0:02:54]} 7. Bh4 {[%clk 0:02:44]}  d6 {[%clk 0:02:53]} 8. h3 {[%clk 0:02:40]}  Bg7 {[%clk 0:02:50]} 9. e3 {[%clk 0:02:37]}  Nbd7 {[%clk 0:02:45]} 10. Be2 {[%clk 0:02:36]}  Qe7 {[%clk 0:02:43]} 11. b4 {[%clk 0:02:26]}  g5 {[%clk 0:02:43]} 12. Bg3 {[%clk 0:02:25]}  a5 {[%clk 0:02:39]} 13. O-O {[%clk 0:02:08]}  O-O {[%clk 0:02:32]} 14. Qc2 {[%clk 0:02:02]}  Nh5 {[%clk 0:02:30]} 15. Bh2 {[%clk 0:02:02]}  f5 {[%clk 0:02:31]} 16. Nd2 {[%clk 0:01:45]}  Nhf6 {[%clk 0:01:53]} 17. bxa5 {[%clk 0:01:44]}  Rxa5 {[%clk 0:01:52]} 18. a4 {[%clk 0:01:43]}  e5 {[%clk 0:01:41]} 19. Nb3 {[%clk 0:01:41]}  Raa8 {[%clk 0:01:40]} 20. a5 {[%clk 0:01:34]}  f4 {[%clk 0:01:36]} 21. axb6 {[%clk 0:01:26]}  Nxb6 {[%clk 0:01:32]} 22. d5 {[%clk 0:01:17]}  Qf7 {[%clk 0:01:01]} 23. e4 {[%clk 0:01:14]}  h5 {[%clk 0:00:59]} 24. c5 {[%clk 0:01:12]}  dxc5 {[%clk 0:00:48]} 25. Nxc5 {[%clk 0:01:12]}  Rxa1 {[%clk 0:00:49]} 26. Rxa1 {[%clk 0:01:11]}  Bc8 {[%clk 0:00:50]} 27. Ne6 {[%clk 0:00:28]}  Bxe6 {[%clk 0:00:48]} 28. dxe6 {[%clk 0:00:29]}  Qxe6 {[%clk 0:00:49]} 29. Nb5 {[%clk 0:00:29]}  c6 {[%clk 0:00:47]} 30. Na7 {[%clk 0:00:23]}  Ra8 {[%clk 0:00:43]} 31. Rb1 {[%clk 0:00:10]}  Rxa7 {[%clk 0:00:42]} 32. Rxb6 {[%clk 0:00:09]}  Ra1+ {[%clk 0:00:43]} 33. Rb1 {[%clk 0:00:09]}  Rxb1+ {[%clk 0:00:41]} 34. Qxb1 {[%clk 0:00:10]}  Kh7 {[%clk 0:00:41]} 35. Qc2 {[%clk 0:00:06]}  Qd6 {[%clk 0:00:38]} 36. Kf1 {[%clk 0:00:05]}  Bf8 {[%clk 0:00:35]} 37. f3 {[%clk 0:00:05]}  Qc5 {[%clk 0:00:23]} 38. Qd1 {[%clk 0:00:05]}  Qd4 {[%clk 0:00:19]} 39. Bg1 {[%clk 0:00:05]}  Qxd1+ {[%clk 0:00:19]} 40. Bxd1 {[%clk 0:00:06]}  Bb4 {[%clk 0:00:16]} 41. Ke2 {[%clk 0:00:04]}  Kg6 {[%clk 0:00:13]} 42. Kd3 {[%clk 0:00:04]}  Nd7 {[%clk 0:00:13]} 43. Kc4 {[%clk 0:00:04]}  Bd2 {[%clk 0:00:11]} 44. Bf2 {[%clk 0:00:03]}  Be3 {[%clk 0:00:07]} 45. Be1 {[%clk 0:00:03]}  Nc5 {[%clk 0:00:07]} 46. Bb4 {[%clk 0:00:02]}  Ne6 {[%clk 0:00:07]} 47. Ba4 {[%clk 0:00:01]}  c5 {[%clk 0:00:05]} 48. Be1 {[%clk 0:00:01]}  Kf6 {[%clk 0:00:01]} 49. Bd7 {[%clk 0:00:02]}  Ng7 {[%clk 0:00:02]} 50. Kd5 {[%clk 0:00:01]}  Ke7 {[%clk 0:00:02]} 51. Bc8 {[%clk 0:00:01]}  Kf6 {[%clk 0:00:03]} 52. Bd7 {[%clk 0:00:02]}  Bd4 {[%clk 0:00:04]} 53. Ba5 {[%clk 0:00:01]}  Ke7 {[%clk 0:00:04]} 54. Bc8 {[%clk 0:00:02]}  Ne8 {[%clk 0:00:05]} 0-1


[Site "https://www.chess.com"]

[Event "Titled Tuesday Blitz July 13 2021"]
[White "Kapitanchuk, Tomas"]
[Black "Martinez Alcantara, Jose Eduardo"]
[WhiteFideId "135046"]
[BlackFideId "3805662"]
[WhiteElo "1955"]
[BlackElo "2690"]
[Result "0-1"]
[Round "01"]
[TimeControl "180+1"]
[Date "2021.07.13"]
[WhiteClock "0:00:10"]
[BlackClock "0:00:11"]

1. e4 {[%clk 0:03:00]}  c5 {[%clk 0:03:00]} 2. Nf3 {[%clk 0:03:00]}  d6 {[%clk 0:03:01]} 3. Bb5+ {[%clk 0:03:00]}  Nd7 {[%clk 0:03:01]} 4. O-O {[%clk 0:03:00]}  a6 {[%clk 0:03:02]} 5. Bxd7+ {[%clk 0:03:00]}  Bxd7 {[%clk 0:03:02]} 6. c4 {[%clk 0:03:01]}  Nf6 {[%clk 0:03:02]} 7. Nc3 {[%clk 0:02:59]}  g6 {[%clk 0:02:56]} 8. d4 {[%clk 0:02:56]}  cxd4 {[%clk 0:02:57]} 9. Nxd4 {[%clk 0:02:57]}  Bg7 {[%clk 0:02:57]} 10. f3 {[%clk 0:02:56]}  b5 {[%clk 0:02:35]} 11. cxb5 {[%clk 0:02:52]}  axb5 {[%clk 0:02:36]} 12. Be3 {[%clk 0:02:52]}  b4 {[%clk 0:02:32]} 13. Nce2 {[%clk 0:02:49]}  O-O {[%clk 0:02:28]} 14. Qd2 {[%clk 0:02:48]}  Qb8 {[%clk 0:02:22]} 15. Rfc1 {[%clk 0:02:42]}  Qb7 {[%clk 0:02:10]} 16. Bh6 {[%clk 0:02:40]}  Bxh6 {[%clk 0:01:54]} 17. Qxh6 {[%clk 0:02:41]}  Ra5 {[%clk 0:01:54]} 18. b3 {[%clk 0:02:39]}  Rfa8 {[%clk 0:01:53]} 19. Rc2 {[%clk 0:02:39]}  Qb6 {[%clk 0:01:16]} 20. Kh1 {[%clk 0:02:22]}  Rc5 {[%clk 0:01:15]} 21. Rd2 {[%clk 0:02:20]}  Rac8 {[%clk 0:01:12]} 22. Qh4 {[%clk 0:01:58]}  Kg7 {[%clk 0:01:10]} 23. Rad1 {[%clk 0:01:57]}  h6 {[%clk 0:01:05]} 24. Qg3 {[%clk 0:01:31]}  Qa6 {[%clk 0:01:04]} 25. h3 {[%clk 0:01:16]}  Kh7 {[%clk 0:00:59]} 26. Qf4 {[%clk 0:01:08]}  Kg7 {[%clk 0:00:58]} 27. Qg3 {[%clk 0:01:05]}  Ra5 {[%clk 0:00:58]} 28. Nc1 {[%clk 0:01:01]}  Rc3 {[%clk 0:00:45]} 29. Nde2 {[%clk 0:01:00]}  Nxe4 {[%clk 0:00:42]} 30. Qf4 {[%clk 0:00:27]}  Nxd2 {[%clk 0:00:42]} 31. Nxc3 {[%clk 0:00:25]}  bxc3 {[%clk 0:00:42]} 32. Qd4+ {[%clk 0:00:25]}  e5 {[%clk 0:00:29]} 33. Qxc3 {[%clk 0:00:26]}  Nf1 {[%clk 0:00:29]} 34. Qe1 {[%clk 0:00:24]}  Bb5 {[%clk 0:00:23]} 35. Kg1 {[%clk 0:00:13]}  Qa7+ {[%clk 0:00:22]} 36. Qf2 {[%clk 0:00:13]}  Ne3 {[%clk 0:00:19]} 37. Rxd6 {[%clk 0:00:13]}  Nf5 {[%clk 0:00:19]} 38. Rd2 {[%clk 0:00:12]}  Qc7 {[%clk 0:00:17]} 39. Rc2 {[%clk 0:00:11]}  Qd6 {[%clk 0:00:16]} 40. Qe1 {[%clk 0:00:11]}  Ra6 {[%clk 0:00:16]} 41. Ne2 {[%clk 0:00:10]}  Nd4 {[%clk 0:00:13]} 42. Nxd4 {[%clk 0:00:10]}  exd4 {[%clk 0:00:14]} 43. Rd2 {[%clk 0:00:09]}  d3 {[%clk 0:00:13]} 44. Qf2 {[%clk 0:00:09]}  Rc6 {[%clk 0:00:12]} 45. a4 {[%clk 0:00:09]}  Ba6 {[%clk 0:00:13]} 46. Qe3 {[%clk 0:00:09]}  Qd5 {[%clk 0:00:10]} 47. Kf2 {[%clk 0:00:10]}  Re6 {[%clk 0:00:10]} 48. Qf4 {[%clk 0:00:09]}  Qc5+ {[%clk 0:00:08]} 49. Kg3 {[%clk 0:00:09]}  g5 {[%clk 0:00:09]} 50. Qg4 {[%clk 0:00:06]}  Qe5+ {[%clk 0:00:09]} 51. f4 {[%clk 0:00:05]}  Qe3+ {[%clk 0:00:10]} 52. Qf3 {[%clk 0:00:06]}  Qxd2 {[%clk 0:00:10]} 53. f5 {[%clk 0:00:06]}  Re3 {[%clk 0:00:11]} 54. f6+ {[%clk 0:00:07]}  Kf8 {[%clk 0:00:11]} 55. Kg4 {[%clk 0:00:08]}  Rxf3 {[%clk 0:00:11]} 56. Kh5 {[%clk 0:00:09]}  Qf4 {[%clk 0:00:11]} 57. g4 {[%clk 0:00:10]}  Rxh3# {[%clk 0:00:11]} 0-1


[Site "https://www.chess.com"]

[Event "Titled Tuesday Blitz July 13 2021"]
[White "Keso, Elias"]
[Black "Steinberg, Nitzan"]
[WhiteFideId "514942"]
[BlackFideId "2801795"]
[WhiteElo "1969"]
[BlackElo "2440"]
[Result "0-1"]
[Round "01"]
[TimeControl "180+1"]
[Date "2021.07.13"]
[WhiteClock "0:00:57"]
[BlackClock "0:00:50"]

1. f4 {[%clk 0:03:00]}  d5 {[%clk 0:02:59]} 2. Nf3 {[%clk 0:03:00]}  Nf6 {[%clk 0:02:59]} 3. e3 {[%clk 0:02:59]}  g6 {[%clk 0:02:58]} 4. b3 {[%clk 0:02:59]}  Bg7 {[%clk 0:02:59]} 5. Bb2 {[%clk 0:02:59]}  O-O {[%clk 0:02:59]} 6. Be2 {[%clk 0:03:00]}  c5 {[%clk 0:02:58]} 7. O-O {[%clk 0:02:59]}  Nc6 {[%clk 0:02:57]} 8. Ne5 {[%clk 0:02:58]}  Nxe5 {[%clk 0:02:46]} 9. fxe5 {[%clk 0:02:57]}  Nd7 {[%clk 0:02:46]} 10. d4 {[%clk 0:02:57]}  Nb8 {[%clk 0:02:35]} 11. Bf3 {[%clk 0:02:45]}  Nc6 {[%clk 0:02:32]} 12. Nc3 {[%clk 0:02:44]}  e6 {[%clk 0:02:11]} 13. Nb5 {[%clk 0:02:41]}  b6 {[%clk 0:02:06]} 14. c4 {[%clk 0:02:38]}  Ba6 {[%clk 0:02:03]} 15. a4 {[%clk 0:02:32]}  Rc8 {[%clk 0:01:44]} 16. Nd6 {[%clk 0:02:25]}  Rc7 {[%clk 0:01:44]} 17. cxd5 {[%clk 0:02:09]}  exd5 {[%clk 0:01:44]} 18. Bxd5 {[%clk 0:02:08]}  Bxf1 {[%clk 0:01:40]} 19. Qxf1 {[%clk 0:02:07]}  Nb4 {[%clk 0:01:31]} 20. Bc4 {[%clk 0:02:01]}  Nc2 {[%clk 0:01:28]} 21. Rc1 {[%clk 0:01:42]}  Nxe3 {[%clk 0:01:28]} 22. Qd3 {[%clk 0:01:43]}  Nxc4 {[%clk 0:01:24]} 23. Qxc4 {[%clk 0:01:43]}  Qg5 {[%clk 0:01:19]} 24. Rf1 {[%clk 0:01:36]}  Re7 {[%clk 0:01:10]} 25. Bc1 {[%clk 0:01:30]}  Qg4 {[%clk 0:01:08]} 26. Be3 {[%clk 0:01:15]}  cxd4 {[%clk 0:01:05]} 27. Bxd4 {[%clk 0:01:15]}  Qe6 {[%clk 0:00:54]} 28. Qb4 {[%clk 0:01:07]}  Bxe5 {[%clk 0:00:49]} 29. Bxe5 {[%clk 0:01:03]}  Qxe5 {[%clk 0:00:50]} 30. Nc4 {[%clk 0:00:57]}  Qd4+ {[%clk 0:00:50]} 31. Kh1 {[%clk 0:00:57]}  Rfe8 {[%clk 0:00:50]} 0-1


[Site "https://www.chess.com"]

[Event "Titled Tuesday Blitz July 13 2021"]
[White "Khanin, Semen"]
[Black "Pandey Srishti"]
[WhiteFideId "4111990"]
[BlackFideId "35093290"]
[WhiteElo "2521"]
[BlackElo "1816"]
[Result "1-0"]
[Round "01"]
[TimeControl "180+1"]
[Date "2021.07.13"]
[WhiteClock "0:01:36"]
[BlackClock "0:01:01"]

1. e4 {[%clk 0:02:55]}  e6 {[%clk 0:02:56]} 2. d4 {[%clk 0:02:54]}  d5 {[%clk 0:02:50]} 3. e5 {[%clk 0:02:55]}  c5 {[%clk 0:02:47]} 4. c3 {[%clk 0:02:55]}  Qb6 {[%clk 0:02:44]} 5. Nf3 {[%clk 0:02:56]}  Bd7 {[%clk 0:02:42]} 6. Bd3 {[%clk 0:02:56]}  Bb5 {[%clk 0:02:41]} 7. dxc5 {[%clk 0:02:55]}  Bxc5 {[%clk 0:02:39]} 8. Bxb5+ {[%clk 0:02:56]}  Qxb5 {[%clk 0:02:39]} 9. b4 {[%clk 0:02:56]}  Bb6 {[%clk 0:02:25]} 10. a4 {[%clk 0:02:55]}  Qd7 {[%clk 0:02:21]} 11. O-O {[%clk 0:02:51]}  Ne7 {[%clk 0:02:13]} 12. Nbd2 {[%clk 0:02:50]}  O-O {[%clk 0:02:11]} 13. Nb3 {[%clk 0:02:51]}  Ng6 {[%clk 0:02:10]} 14. Re1 {[%clk 0:02:51]}  Nc6 {[%clk 0:02:09]} 15. b5 {[%clk 0:02:44]}  Na5 {[%clk 0:02:08]} 16. Nbd4 {[%clk 0:02:31]}  Rac8 {[%clk 0:02:04]} 17. Qd3 {[%clk 0:02:31]}  Nc4 {[%clk 0:01:57]} 18. h4 {[%clk 0:02:30]}  Bc7 {[%clk 0:01:55]} 19. Ng5 {[%clk 0:02:13]}  h6 {[%clk 0:01:35]} 20. Ngxe6 {[%clk 0:02:12]}  Ngxe5 {[%clk 0:01:32]} 21. Rxe5 {[%clk 0:02:04]}  Nxe5 {[%clk 0:01:31]} 22. Nxf8 {[%clk 0:02:03]}  Qd8 {[%clk 0:01:10]} 23. Qh7+ {[%clk 0:01:55]}  Kxf8 {[%clk 0:01:10]} 24. Ba3+ {[%clk 0:01:39]}  Ke8 {[%clk 0:01:01]} 25. Re1 {[%clk 0:01:37]}  Kd7 {[%clk 0:01:01]} 26. Qf5+ {[%clk 0:01:36]} 1-0


[Site "https://www.chess.com"]